[Event "87th Tata Steel Challengers 2025"]
[Site "Wijk aan Zee"]
[Date "2025.01.22"]
[Round "5.6"]
[White "Gurel, Ediz"]
[Black "Nguyen, Thai Dai Van"]
[Result "1/2-1/2"]
[Annotator "TA"]
[ECO "C90"]
[WhiteElo "2624"]
[BlackElo "2668"]
[PlyCount "237"]
[EventDate "2025.01.13"]
[EventType "tourn"]
[EventCountry "NED"]
[SourceTitle "playchess.com"]
[Source "ChessBase"]
[SourceQuality "1"]
[TimeControl "40/6000+30:20/3000+30:900+30"]

{[%evp 154,236,210,210,344,256,236,210,210,210,210,210,210,210,210,210,210,210,210,210,210,210,210,210,210,210,210,210,210,210,210,210,210,210,210,210,210,0,210,210,210,210,210,210,210,204,1120,210,210,210,210,210,210,210,210,210,210,210,210,210,428,251,210,210,210,81,81,81,81,81,81,78,78,78,78,78,78,78,29980,29981,29981,72,72,0,0]} 1. e4 {[%emt 0:00:04]} e5 {[%emt 0:00:34]} 2. Nf3 {[%emt 0:00:11]} Nc6 {[%emt 0:00:33]} 3. Bb5 {[%emt 0:00:12]} Nf6 {[%emt 0:00:11]} 4. d3 {[%emt 0:00:16]} d6 {[%emt 0:00:09]} 5. O-O {[%emt 0:00:19]} Be7 {[%emt 0:00:19]} 6. Re1 {[%emt 0:00:41]} O-O {[%emt 0:00:12]} 7. c3 {[%emt 0:01:36]} a6 {[%emt 0:00:35]} 8. Ba4 {[%emt 0:00:30]} Re8 {[%emt 0:00:09]} 9. Nbd2 {[%emt 0:02:03]} Bf8 {[%emt 0:00:47]} 10. Nf1 {[%emt 0:01:20]} h6 {[%emt 0:00:39]} 11. Ng3 {[%emt 0:02:17]} b5 {[%emt 0:00:11]} 12. Bb3 {[%emt 0:02:00]} Be6 {[%emt 0:00:11]} 13. a4 {[%emt 0:16:47]} b4 {[%emt 0:19:59]} 14. Bxe6 {[%emt 0:08:20]} Rxe6 {[%emt 0:00:06]} 15. d4 {[%emt 0:06:03]} d5 {[%emt 0:02:28]} 16. dxe5 {[%emt 0:17:44]} Nxe4 {[%emt 0:01:31]} 17. c4 {[%emt 0:02:55]} Nxe5 {[%emt 0:53:26]} 18. cxd5 {[%emt 0:01:03]} Nxf2 {[%emt 0:00:15]} 19. Kxf2 {[%emt 0:00:11]} Ng4+ {[%emt 0:00:08]} 20. Kf1 {[%emt 0:00:14]} Rxe1+ {[%emt 0:05:25]} 21. Qxe1 {[%emt 0:06:48]} Qf6 {[%emt 0:06:54]} 22. Qe4 {[%emt 0:09:39]} Nxh2+ {[%emt 0:00:06]} 23. Kg1 {[%emt 0:00:06]} Nxf3+ {[%emt 0:00:05]} 24. gxf3 {[%emt 0:00:06]} Bd6 {[%emt 0:00:28]} 25. Nf5 {[%emt 0:01:59]} Rd8 {[%emt 0:07:09]} 26. Nxd6 {[%emt 0:10:49]} Rxd6 {[%emt 0:00:02]} 27. Qe8+ {[%emt 0:00:32]} Kh7 {[%emt 0:00:01]} 28. Qe4+ {[%emt 0:00:04]} Kg8 {[%emt 0:00:12]} 29. Kf2 {[%emt 0:01:10]} c6 {[%emt 0:01:08]} 30. dxc6 {[%emt 0:04:08]} Rxc6 {[%emt 0:00:08]} 31. Bd2 {[%emt 0:00:36]} Qd6 {[%emt 0:07:17]} 32. Bf4 {[%emt 0:06:22]} Qc5+ {[%emt 0:00:20]} 33. Kf1 {[%emt 0:01:25]} Re6 {[%emt 0:02:48]} 34. Qd3 {[%emt 0:02:30]} Rg6 {[%emt 0:00:09]} 35. Re1 {[%emt 0:02:18]} Qg1+ {[%emt 0:02:24]} 36. Ke2 {[%emt 0:00:00]} Qg2+ {[%emt 0:00:25]} 37. Kd1 {[%emt 0:00:05]} Qxb2 {[%emt 0:00:04]} 38. Qc2 {[%emt 0:04:15]} Qd4+ {[%emt 0:00:02]} 39. Bd2 {[%emt 0:00:29]} Qa1+ {[%emt 0:01:30]} 40. Ke2 {[%emt 0:01:10]} Qd4 {[%emt 0:00:24]} 41. Kd1 {[%emt 0:51:09]} Qa1+ {[%emt 0:27:24]} 42. Ke2 {[%emt 0:00:00]} Qf6 {[%emt 0:02:07]} 43. Qd3 {[%emt 0:00:00]} b3 {[%emt 0:01:09]} 44. Bc3 {[%emt 0:00:00]} Qh4 {[%emt 0:03:25]} 45. Kd1 {[%emt 0:00:00]} Qxa4 {[%emt 0:01:56]} 46. Bb2 {[%emt 0:00:00]} Qh4 {[%emt 0:05:17]} 47. Re8+ {[%emt 0:00:00]} Kh7 {[%emt 0:00:01]} 48. Re4 {[%emt 0:00:00]} Qh2 {[%emt 0:04:52]} 49. Re2 {[%emt 0:00:00]} Qd6 {[%emt 0:00:37]} 50. Kd2 {[%emt 0:00:00]} Qb4+ {[%emt 0:01:01]} 51. Kd1 {[%emt 0:00:00]} Qd6 {[%emt 0:00:34]} 52. Kd2 {[%emt 0:00:00]} Qb4+ {[%emt 0:02:51]} 53. Kd1 {[%emt 0:00:00]} a5 {[%emt 0:00:02]} 54. Re4 {[%emt 0:00:00]} Qd6 {[%emt 0:03:52]} 55. Rd4 {[%emt 0:00:00]} Qh2 {[%emt 0:00:42]} 56. Kc1 {[%emt 0:00:00]} Qc7+ {[%emt 0:02:40]} 57. Bc3 {[%emt 0:00:00]} Qh2 {[%emt 0:00:33]} 58. Bxa5 {[%emt 0:00:00]} f5 {[%emt 0:00:33]} 59. Bd2 {[%emt 0:00:00]} Qe5 {[%emt 0:00:24]} 60. Bc3 {[%emt 0:00:00]} Qe6 {[%emt 0:00:33]} 61. Rd5 {[%emt 0:05:39]} Rg2 {[%emt 0:15:13]} 62. Bd2 {[%emt 0:00:04]} Qf6 {[%emt 0:00:41]} 63. Qxb3 {[%emt 0:00:46]} Rg1+ {[%emt 0:00:33]} 64. Kc2 {[%emt 0:00:04]} Qc6+ {[%emt 0:00:15]} 65. Kd3 {[%emt 0:01:42]} Qa6+ {[%emt 0:00:06]} 66. Ke3 {[%emt 0:01:03]} Qa7+ {[%emt 0:00:53]} 67. Rd4 {[%emt 0:00:26]} Qe7+ {[%emt 0:00:45]} 68. Kd3 {[%emt 0:02:06]} Qe5 {[%emt 0:00:34]} 69. Rd5 {[%emt 0:03:34]} Qe6 {[%emt 0:00:13]} 70. Qb5 {[%emt 0:01:02]} Rb1 {[%emt 0:00:41]} 71. Qc5 {[%emt 0:01:06]} Rb3+ {[%emt 0:00:33]} 72. Bc3 {[%emt 0:00:20]} Qe1 {[%emt 0:00:01]} 73. Qd4 {[%emt 0:03:23]} Qf1+ {[%emt 0:00:17]} 74. Kc2 {[%emt 0:00:41]} Rb7 {[%emt 0:00:01]} 75. Qd3 {[%emt 0:01:11]} Qxd3+ {[%emt 0:01:24]} 76. Kxd3 {[%emt 0:00:01]} Rf7 {[%emt 0:00:29]} 77. Ke3 {[%emt 0:00:35]} Kg6 {[%emt 0:00:50]} 78. Kf4 {[%emt 0:01:11]} Rc7 {[%emt 0:00:30]} (78... Kh5 $142 79. Rxf5+ g5+ 80. Ke4 Re7+ 81. Re5 Rc7) 79. Bd4 $18 {[%emt 0:00:48]} Rf7 {[%emt 0:00:10]} 80. Bf2 {[%emt 0:00:28]} Rb7 {[%emt 0:00:50]} 81. Rd6+ {[%emt 0:00:25]} (81. Rxf5 $2 Rb4+ 82. Ke5 Rb5+ 83. Kf4 Rxf5+ $19) 81... Kh5 {[%emt 0:00:28]} 82. Kxf5 {[%emt 0:00:05]} Rf7+ {[%emt 0:00:19]} 83. Ke4 {[%emt 0:00:01]} Re7+ {[%emt 0:00:41]} 84. Kf4 {[%emt 0:00:26]} g5+ {[%emt 0:00:30]} 85. Kf5 {[%emt 0:02:05]} Rb7 {[%emt 0:00:14]} 86. Bd4 {[%emt 0:00:31]} Rb3 {[%emt 0:00:22]} 87. Ke4 {[%emt 0:00:04]} Rb4 {[%emt 0:00:24]} 88. Rc6 {[%emt 0:00:49]} Ra4 {[%emt 0:00:38]} 89. Ke3 {[%emt 0:00:29]} Ra3+ {[%emt 0:00:37]} 90. Kf2 {[%emt 0:00:14]} Ra2+ {[%emt 0:00:23]} 91. Kg3 {[%emt 0:00:16]} Ra3 {[%emt 0:00:10]} 92. Re6 {[%emt 0:03:56]} Rb3 {[%emt 0:01:15]} 93. Bc5 {[%emt 0:03:40]} Rb8 {[%emt 0:00:14]} 94. Rf6 {[%emt 0:00:07]} Rg8 {[%emt 0:00:26]} 95. Re6 $2 {[%emt 0:01:13]} (95. Rd6 $18) 95... Rg6 $2 {[%emt 0:00:23]} (95... Rb8 $1 $11 96. Bd4 Rb7) 96. Re5 $18 {[%emt 0:00:31]} Rf6 {[%emt 0:00:20]} 97. Be3 {[%emt 0:00:40]} Kg6 {[%emt 0:01:03]} 98. Rd5 {[%emt 0:00:04]} Re6 {[%emt 0:00:34]} 99. Bd4 {[%emt 0:00:05]} Kh5 $2 {[%emt 0:00:29]} (99... Ra6 100. Bg1 h5) 100. Kf2 $2 {[%emt 0:00:18]} (100. f4 Re4 101. Be5 (101. f5 Rg4+ 102. Kf3 Rf4+ 103. Ke3 Rf1 $18)) 100... Kg6 $18 {[%emt 0:00:10]} 101. Be5 {[%emt 0:00:25]} Kf5 {[%emt 0:00:19]} 102. Bb2+ {[%emt 0:01:12]} Kg6 {[%emt 0:00:01]} 103. Bd4 {[%emt 0:00:05]} Ra6 {[%emt 0:00:22]} 104. Ke3 {[%emt 0:00:11]} Re6+ {[%emt 0:00:20]} 105. Kd3 {[%emt 0:00:07]} Re7 {[%emt 0:01:22]} 106. Be5 {[%emt 0:00:28]} Rb7 $2 {[%emt 0:00:55]} (106... Re8 {might work better.} 107. Ke4 Ra8) 107. Ke4 $18 {[%emt 0:00:10]} Kh5 {[%emt 0:00:32]} 108. Rd6 {[%emt 0:01:30]} Rb4+ {[%emt 0:00:30]} 109. Kf5 {[%emt 0:00:07]} (109. Ke3 $18 {is more deadly.}) 109... Rb3 $16 {[%emt 0:00:10]} 110. f4 {[%emt 0:00:25]} (110. Ke4 Rb7 111. Kf5 Rb3 $18) 110... gxf4 {[%emt 0:00:34]} 111. Bxf4 {[%emt 0:00:10]} Rb5+ {[%emt 0:00:05]} 112. Be5 {[%emt 0:00:04]} Rb1 {[%emt 0:00:59]} 113. Rd3 {[%emt 0:00:21]} Rb4 {[%emt 0:00:28]} 114. Ra3 {[%emt 0:00:59]} Rc4 {[%emt 0:00:21]} 115. Bd6 {[%emt 0:01:36]} Rd4 $2 {[%emt 0:00:39][%mdl 8192] [#]} (115... Ra4 $16) 116. Bf4 $1 {[%emt 0:00:23]} Kh4 {[%emt 0:00:34] [#]} 117. Ra6 $2 {[%emt 0:01:58]} ({Less strong is} 117. Bxh6 Rg4 118. Bf4 Kh5 $18) (117. Be5 $1 {mates} Rd5 118. Ra4+ Kh5 119. Ra1 (119. Ra2 Rxe5+ 120. Kxe5 Kg4 121. Rg2+ Kf3 122. Rh2 Ke3 123. Rxh6 Kd3) 119... Rxe5+ 120. Kxe5 Kg4 121. Rg1+ Kf3 122. Rh1) 117... h5 $16 {[%emt 0:00:38]} 118. Ra3 {[%emt 0:00:20]} (118. Bg5+ Kg3 119. Re6 Ra4 120. Re3+ Kg2 $16) 118... Rxf4+ $1 {[%emt 0:00:11]} 119. Kxf4 {[%emt 0:00:06]} 1/2-1/2

[Event "87th Tata Steel Challengers 2025"]
[Site "Wijk aan Zee"]
[Date "2025.01.22"]
[Round "5.7"]
[White "Nogerbek, Kazybek"]
[Black "Bulmaga, Irina"]
[Result "1-0"]
[Annotator "TA"]
[ECO "E97"]
[WhiteElo "2514"]
[BlackElo "2386"]
[PlyCount "101"]
[EventDate "2025.01.13"]
[EventType "tourn"]
[EventCountry "NED"]
[SourceTitle "playchess.com"]
[Source "ChessBase"]
[SourceQuality "1"]
[TimeControl "40/6000+30:20/3000+30:900+30"]

{[%evp 21,101,29,29,39,37,12,20,24,45,52,54,39,39,20,21,6,8,0,0,0,0,0,0,0,0,-33,25,7,0,0,0,0,0,0,0,0,0,0,14,0,20,6,23,19,19,0,0,-27,-27,-27,-27,-37,0,0,0,0,0,0,0,0,0,0,0,0,60,0,347,334,822,819,691,77,75,0,29985,29986,29986,29987,29987,29988,29988,29989]} 1. c4 {[%emt 0:00:06]} Nf6 {[%emt 0:00:08]} 2. Nc3 {[%emt 0:00:19]} g6 {[%emt 0:00:08]} 3. Nf3 {[%emt 0:00:34]} Bg7 {[%emt 0:00:10]} 4. e4 {[%emt 0:00:28]} d6 {[%emt 0:00:08]} 5. d4 {[%emt 0:00:08]} O-O {[%emt 0:00:09]} 6. Be2 {[%emt 0:00:10]} e5 {[%emt 0:00:15]} 7. O-O {[%emt 0:00:10]} Nc6 {[%emt 0:00:11]} 8. d5 {[%emt 0:00:08]} Ne7 {[%emt 0:00:08]} 9. b4 {[%emt 0:00:09]} Nh5 {[%emt 0:00:14]} 10. Re1 {[%emt 0:01:02]} a5 {[%emt 0:12:55]} 11. bxa5 {[%emt 0:01:52]} Rxa5 {[%emt 0:00:07]} 12. a4 {[%emt 0:01:43]} f5 {[%emt 0:09:43]} 13. Ra3 {[%emt 0:02:21]} fxe4 {[%emt 0:13:51]} 14. Nxe4 {[%emt 0:01:03]} Nf4 {[%emt 0:01:17]} 15. Bf1 {[%emt 0:05:56][%cal Be2f1,Bf1g2,Bg2e4][%mdl 32]} b6 {[%emt 0:01:11]} 16. Nfd2 {[%emt 0:18:24][%cal Bf3d2,Bd2b1,Bb1c3,Bc3b5][%mdl 32]} Bd7 {[%emt 0:10:56]} 17. g3 {[%emt 0:01:48]} Nh5 $1 {[%emt 0:00:27]} 18. Nb1 {[%emt 0:04:29]} Nf6 {[%emt 0:04:45]} 19. Bg2 {[%emt 0:11:58]} Nxe4 {[%emt 0:07:41]} 20. Bxe4 {[%emt 0:00:22]} Nf5 {[%emt 0:02:23]} 21. Nc3 {[%emt 0:05:46]} Qf6 {[%emt 0:10:58]} 22. Nb5 {[%emt 0:04:20]} Nd4 {[%emt 0:05:33]} 23. f3 {[%emt 0:01:59]} (23. Nxc7 $2 Qxf2+ 24. Kh1 Bxa4 $19) 23... Bf5 {[%emt 0:06:47]} (23... Bxb5 $15 24. cxb5 Rfa8) 24. Kg2 {[%emt 0:01:30]} Qf7 {[%emt 0:05:18]} 25. Bb2 {[%emt 0:02:37][%cal Bc1b2,Bb2c3,Bc3e1,Be1f2][%mdl 32]} Bxe4 {[%emt 0:08:07]} 26. Rxe4 {[%emt 0:00:55]} Nf5 {[%emt 0:03:16]} 27. Bc3 {[%emt 0:03:57]} Ra6 {[%emt 0:00:03]} 28. Be1 {[%emt 0:01:01]} h5 {[%emt 0:00:57]} 29. Bf2 {[%emt 0:00:54]} Ra5 {[%emt 0:00:45]} 30. h3 {[%emt 0:03:52]} Raa8 {[%emt 0:00:50]} 31. g4 {[%emt 0:02:31]} Nh6 $1 {[%emt 0:03:03]} 32. Qd3 {[%emt 0:04:22]} Kh8 {[%emt 0:00:39]} 33. Re2 {[%emt 0:02:09]} Ng8 $1 {[%emt 0:00:32]} 34. g5 {[%emt 0:00:51]} Kh7 {[%emt 0:00:27]} 35. Rea2 {[%emt 0:06:24]} Qe7 {[%emt 0:00:11]} 36. h4 {[%emt 0:01:15]} Rf7 {[%emt 0:00:18]} (36... Rf4 $5) 37. a5 {[%emt 0:04:29]} bxa5 {[%emt 0:00:02]} 38. Rxa5 {[%emt 0:00:21]} Raf8 {[%emt 0:00:08]} 39. Ra7 $36 {[%emt 0:00:08][%mdl 2048] White is pushing.} Rxf3 {[%emt 0:03:54]} 40. Qxf3 {[%emt 0:02:00]} Rxf3 {[%emt 0:00:07]} 41. Kxf3 {[%emt 0:50:09]} Qd7 {[%emt 0:11:33] and ...Qg4+ would now be decisive} 42. Rxc7 {[%emt 0:00:00] Active counter play!} Qg4+ $1 {[%emt 0:02:10]} 43. Ke3 {[%emt 0:00:00] Chess con chili.} Qf4+ $2 {[%emt 0:01:15][%mdl 8192]} (43... Ne7 $1 $11 44. Rxe7 Qf4+ 45. Kd3 e4+ 46. Rxe4 Qf3+ 47. Re3 Qf5+ 48. Ke2 Qg4+ 49. Ke1 Qxc4) 44. Ke2 $18 {[%emt 0:00:00]} Ne7 $2 {[%emt 0:04:54]} (44... Qe4+ 45. Kd2 Qf3) 45. Nxd6 $1 {[%emt 0:00:00]} (45. Rxe7 $2 Qxc4+ 46. Kf3 Qxd5+ (46... Qxa2 $2 47. Nc7 $19) (46... Qxb5 47. Raa7 $16) 47. Kg3 Qxa2 $19) 45... Nf5 {[%emt 0:07:55]} 46. Nxf5 $2 {[%emt 0:00:00]} (46. Raa7 $18 {is the precise move to win. Threatening mate with Nxf5.} Qg4+ 47. Ke1 Nxd6 48. Rxg7+ Kh8 49. Rgc7 (49. Rxg6 $2 Qe4+ 50. Kd2 Qxg6 $19) 49... Qe4+ 50. Kd2 Qf4+ 51. Kc3) 46... Qxf5 $16 {[%emt 0:03:18]} 47. Raa7 {[%emt 0:00:00]} ({Better is} 47. Ra3 $16 {And now Kf1 would win.} Qe4+ 48. Be3) 47... Qe4+ $2 {[%emt 0:04:42][%mdl 8192]} (47... Qc2+ $11 48. Kf3 Kh8 49. Rxg7 Qe4+ 50. Kg3 Qg4+ 51. Kh2 Qf4+ 52. Bg3 Qd2+ 53. Kh3 Qd1 54. Rh7+ (54. Rxg6 Qh1+ 55. Bh2 Qf3+ 56. Bg3 Qh1+ 57. Bh2 Qf3+ 58. Bg3 Qh1+ $11) (54. Bxe5 Qf3+ 55. Kh2 Qf2+ 56. Kh3 Qh2+ 57. Kxh2 $11) 54... Kg8 55. Rag7+ (55. Bxe5 Qf3+ 56. Bg3 Qh1+ 57. Bh2 Qf3+ 58. Bg3 Qh1+ 59. Bh2 Qf3+ 60. Bg3 $11) 55... Kf8 56. Rf7+ (56. Rxg6 Qh1+ 57. Bh2 Qf1+ 58. Kg3 Qf4+ 59. Kg2 Qe4+ 60. Kg1 Qb1+ 61. Kg2 Qxg6 $17) (56. Bxe5 Qf3+ 57. Bg3 Qh1+ 58. Bh2 Qf3+ 59. Bg3 Qh1+ 60. Bh2 Qf3+ 61. Bg3 $11) 56... Kg8) 48. Kd2 {[%emt 0:00:00]} Kh8 {[%emt 0:12:41]} 49. Rxg7 {[%emt 0:00:00]} Qxc4 {[%emt 0:00:19]} 50. Rgc7 {[%emt 0:00:00][%cal Ra7a8]} ({Inferior is} 50. Rxg6 Qxd5+ 51. Kc1 Qc4+ 52. Kd2 Qb4+ 53. Ke2 (53. Kc1 Qc3+ 54. Kd1 Qd3+ 55. Ke1 Qb1+ 56. Ke2 Qxg6 $11) 53... Qe4+ 54. Kf1 Qxg6 $11) 50... Qxd5+ {[%emt 0:01:11]} 51. Kc1 {[%emt 0:00:00]} 1-0